bitfinex-derivatives/quotes_SOLF0:USTF0_20240827
["timestamp","ask_amount","ask_price","bid_price","bid_amount"]
[1724756129298,3.29818061,153.78,153.75,3.29722765]
[1724756129602,0.04718061,153.78,153.75,0.04572765]
[1724756129901,8.02718061,153.78,153.75,0.04572765]
[1724756130705,3.2511,153.77,153.75,0.04572765]
[1724756131103,8.02718061,153.78,153.75,0.04572765]
[1724756131300,3.2511,153.77,153.75,0.04572765]
[1724756131496,3.2511,153.77,153.75,3.24949285]
[1724756131804,3.2511,153.77,153.75,0.04572765]
[1724756132204,3.2511,153.77,153.75,3.28148422]
[1724756132604,0.04718061,153.78,153.75,3.28148422]
[1724756133003,0.04718061,153.78,153.76,3.2513]
[1724756133308,0.04718061,153.78,153.75,3.28148422]
[1724756134203,0.04718061,153.78,153.76,7.98]
[1724756134803,0.04718061,153.78,153.75,3.28148422]
[1724756135202,3.29808061,153.78,153.75,6.53288422]
[1724756136604,0.04718061,153.78,153.77,7.98]
[1724756137203,0.04718061,153.78,153.77,11.2311]
[1724756138504,5.22925074,153.8,153.79,3.2506]
[1724756138819,1.2423,153.84,153.79,11.2306]
[1724756139006,5.23028999,153.83,153.79,11.2306]
[1724756139602,5.2756378,153.83,153.79,11.27894929]
[1724756140301,8.48028999,153.82,153.79,11.27894929]
[1724756140504,3.25,153.82,153.79,11.27894929]
[1724756140802,5.2333248,153.81,153.79,11.27894929]
[1724756140998,3.25,153.82,153.79,11.27894929]
[1724756141401,3.29524781,153.83,153.8,3.2504]
[1724756141705,5.23374275,153.82,153.81,7.98]
[1724756142499,0.04534781,153.83,153.81,11.2301]
[1724756142707,0.04534781,153.83,153.82,7.98]
[1724756143202,5.27996515,153.83,153.82,7.98]
[1724756143403,0.04534781,153.83,153.82,7.98]
[1724756143603,5.27996515,153.83,153.82,7.98]
[1724756144504,5.27996515,153.83,153.79,0.04834929]
[1724756144706,5.23461734,153.82,153.81,7.98]
[1724756145311,5.23461734,153.82,153.79,8.02834929]
[1724756145507,5.23461734,153.81,153.79,0.04834929]
[1724756145803,5.23461734,153.8,153.79,0.04834929]
[1724756147814,8.48501734,153.8,153.79,0.04834929]
[1724756149808,5.23461734,153.8,153.79,0.04834929]
[1724756150106,2.5297,153.82,153.79,0.04834929]
[1724756150313,5.2314001,153.81,153.79,0.04834929]
[1724756150516,2.5297,153.82,153.79,0.04834929]
[1724756150711,5.23092411,153.8,153.79,0.04834929]
[1724756151315,8.48134464,153.8,153.79,0.04834929]
[1724756152613,3.2513,153.76,153.75,3.23575657]
[1724756152918,5.23094464,153.76,153.74,19.98]
[1724756153114,5.23094464,153.75,153.74,19.98]
[1724756153314,2.5297,153.82,153.69,1.3494]
[1724756153511,5.23296536,153.75,153.74,19.98]
[1724756153711,0.04120084,153.76,153.75,3.2515]
[1724756154013,5.23285932,153.76,153.74,23.28465633]
[1724756154214,5.23285932,153.75,153.74,3.30465633]
[1724756156609,5.23285932,153.75,153.74,6.55635633]
[1724756158717,5.23285932,153.75,153.74,26.53635633]
[1724756159622,5.22841977,153.75,153.74,26.53635633]
[1724756161618,5.22841977,153.76,153.74,26.53635633]
[1724756161828,0.04971419,153.77,153.74,26.53635633]
[1724756162015,5.22523179,153.75,153.74,26.53635633]
[1724756165125,0.04971419,153.77,153.75,3.2514]
[1724756165515,5.22514041,153.76,153.75,3.2514]
[1724756165719,5.22514041,153.76,153.75,23.2314]
[1724756166024,0.04971419,153.77,153.76,3.2513]
[1724756166814,0.04971419,153.77,153.75,23.2314]
[1724756167419,0.04971419,153.77,153.76,3.2513]
[1724756168026,0.04971419,153.77,153.76,11.2413]
[1724756168627,0.04971419,153.77,153.76,7.99]
[1724756171725,0.04971419,153.77,153.74,14.54635633]
[1724756172316,3.30101419,153.77,153.74,11.29465633]
[1724756172923,0.04971419,153.77,153.74,3.30465633]
[1724756173121,0.04971419,153.77,153.74,11.29465633]
[1724756173928,0.04971419,153.77,153.76,7.99]
[1724756174421,0.04971419,153.77,153.75,3.2515]
[1724756174628,0.04971419,153.77,153.76,7.99]
[1724756176724,3.2504,153.81,153.76,7.99]
[1724756176922,3.2504,153.81,153.78,7.99]
[1724756177126,1.2479,153.87,153.8,7.99]
[1724756177321,6.22377929,153.86,153.83,7.99]
[1724756177730,3.2496,153.85,153.83,11.31096169]
[1724756177932,5.22537473,153.84,153.83,11.35414223]
[1724756178326,5.22554443,153.84,153.83,11.35414223]
[1724756179731,5.22554443,153.84,153.83,8.03318054]
[1724756181730,0.04114873,153.86,153.83,8.03318054]
[1724756181923,5.23003513,153.88,153.85,7.99]
[1724756182129,1.2376,153.94,153.88,7.99]
[1724756182334,6.23193345,153.93,153.88,7.99]
[1724756182634,3.2485,153.9,153.88,7.99]
[1724756183033,3.2485,153.9,153.87,7.99]
[1724756183335,3.2486,153.89,153.87,8.03369606]
[1724756183532,0.04287057,153.91,153.87,0.04369606]
[1724756183735,9.2298,153.9,153.83,7.99]
[1724756184126,3.2491,153.87,153.83,11.2398]
[1724756184329,1.2398,153.9,153.86,7.99]
[1724756184637,1.2398,153.9,153.88,7.99]
[1724756184638,5.22625483,153.89,153.88,7.99]
[1724756186835,8.47475483,153.89,153.88,7.99]
[1724756187065,3.2485,153.89,153.88,7.99]
[1724756187728,5.22810449,153.89,153.88,7.99]
[1724756188931,8.47660449,153.89,153.88,7.99]
[1724756190532,3.2485,153.89,153.88,7.99]
[1724756190733,8.47439206,153.89,153.88,7.99]
[1724756191140,8.47439649,153.89,153.88,7.99]
[1724756192236,5.22589649,153.89,153.88,7.99]
[1724756193130,5.22589649,153.89,153.88,11.2387]
[1724756193338,3.2965372,153.9,153.88,11.2387]
[1724756193538,3.2965372,153.9,153.89,7.99]
[1724756193734,8.52350778,153.9,153.89,7.99]
[1724756194543,5.27510778,153.9,153.89,11.2385]
[1724756194936,0.0481372,153.9,153.89,11.2385]
[1724756195349,0.0481372,153.9,153.89,7.99]
[1724756195644,5.27414884,153.9,153.87,0.0444472]
[1724756195942,3.2965372,153.9,153.88,7.99]
[1724756197038,0.0481372,153.9,153.89,7.99]
[1724756197634,5.27370684,153.9,153.89,7.99]
[1724756197835,0.0481372,153.9,153.89,7.99]
[1724756198340,5.27370684,153.9,153.89,7.99]
[1724756199041,8.52200684,153.9,153.89,7.99]
[1724756199942,8.5234709,153.9,153.89,7.99]
[1724756200142,8.5234709,153.9,153.88,11.2387]
[1724756200330,3.2964372,153.9,153.88,7.99]
[1724756202237,5.22726889,153.89,153.88,11.2387]
[1724756202444,0.0481372,153.9,153.88,11.2387]
[1724756203049,0.0481372,153.9,153.89,3.2485]
[1724756205239,0.0481372,153.9,153.88,11.2386]
[1724756207942,3.2965372,153.9,153.87,3.2933472]
[1724756208148,3.2965372,153.9,153.88,7.99]
[1724756209546,3.2486,153.89,153.87,3.2933472]
[1724756209745,3.2486,153.89,153.88,7.99]
[1724756210251,3.2965372,153.9,153.88,7.99]
[1724756212254,0.0481372,153.9,153.87,0.0444472]
[1724756213246,3.2487,153.89,153.87,0.0444472]
[1724756213846,3.2487,153.88,153.87,0.0444472]
[1724756214043,50.05774018,153.88,153.66,3.17896309]
[1724756214249,50.05774018,153.88,153.59,23.90408821]
[1724756214250,3.251,153.78,153.75,7.99]
[1724756214957,3.29373207,153.78,153.75,8.03385459]
[1724756215352,0.04273207,153.78,153.75,0.04385459]
[1724756215752,7.99,153.77,153.71,3.32151156]
[1724756215950,1.31533207,153.78,153.69,23.2527]
[1724756216156,1.31533207,153.78,153.69,26.53424816]
[1724756216157,1.2726,153.78,153.69,26.53424816]
[1724756216356,5.22218181,153.77,153.69,26.53424816]
[1724756216752,0.04288359,153.75,153.71,0.04258801]
[1724756217049,3.2519,153.74,153.71,0.04258801]
[1724756217857,3.29438359,153.75,153.71,20.04258801]
[1724756218061,0.04288359,153.75,153.71,20.04258801]
[1724756218256,0.04288359,153.75,153.73,20.0]
[1724756219354,5.22145182,153.78,153.73,20.0]
[1724756219549,3.2505,153.8,153.78,20.0]
[1724756221156,3.2506,153.79,153.78,20.0]
[1724756221358,3.2506,153.79,153.77,0.04355077]
[1724756222161,3.2506,153.79,153.77,3.29350243]
[1724756222755,3.2506,153.79,153.77,0.04355077]
[1724756223757,3.29452736,153.81,153.78,20.0]
[1724756223966,3.29452736,153.81,153.78,23.27370668]
[1724756224158,0.04412736,153.81,153.78,20.0]
[1724756224467,0.04412736,153.81,153.78,23.19631101]
[1724756225461,3.2505,153.8,153.78,23.19631101]
[1724756225761,3.2505,153.8,153.78,20.0]
[1724756226159,3.29442736,153.81,153.78,23.2509]
[1724756232166,0.04412736,153.81,153.8,20.0]
[1724756234466,3.29432736,153.81,153.8,20.0]
[1724756236173,3.2506,153.79,153.78,20.0]
[1724756236467,3.2506,153.79,153.77,6.49618673]
[1724756236658,3.2505,153.8,153.77,6.49618673]
[1724756236968,0.04412736,153.81,153.78,23.2508]
[1724756237857,3.2505,153.8,153.78,23.2508]
[1724756238062,3.2505,153.8,153.78,20.0]
[1724756239073,0.04412736,153.81,153.77,0.04355077]
[1724756240070,3.2508,153.79,153.77,0.04355077]
[1724756240973,0.04412736,153.81,153.77,0.04355077]
[1724756242578,0.04412736,153.81,153.77,3.32484862]
[1724756242885,0.04412736,153.81,153.77,0.04355077]
[1724756243288,5.26906015,153.81,153.77,0.04355077]
[1724756243683,1.2537,153.8,153.77,0.04355077]
[1724756243985,3.2509,153.78,153.77,0.04355077]
[1724756244377,8.47551934,153.78,153.77,0.04355077]
[1724756249197,5.22461934,153.78,153.77,3.27779441]
[1724756249386,0.04412736,153.81,153.77,0.04355077]
[1724756250096,0.04412736,153.81,153.77,3.29990889]
[1724756250596,0.04412736,153.81,153.77,6.55090889]
[1724756251279,3.2506,153.8,153.77,6.55090889]
[1724756251480,0.04412736,153.81,153.77,3.29990889]
[1724756251689,3.2506,153.8,153.77,3.29990889]
[1724756251893,3.2506,153.8,153.77,6.55080889]
[1724756252486,3.29442736,153.81,153.78,23.2508]
[1724756253494,3.2505,153.8,153.78,20.0]
[1724756254089,0.04412736,153.81,153.78,20.0]
[1724756254685,3.29452736,153.81,153.78,23.2509]
[1724756255087,0.04412736,153.81,153.78,20.0]
[1724756255291,0.04412736,153.81,153.79,3.2506]
[1724756255493,45.98,153.9,153.8,20.0]
[1724756255717,5.22476625,153.88,153.83,20.0]
[1724756255996,3.2496,153.85,153.83,20.0]
[1724756256389,5.22554677,153.84,153.83,20.0]
[1724756256798,0.04255867,153.86,153.83,20.0]
[1724756256999,3.2495,153.85,153.83,20.0]
[1724756257297,5.22554677,153.84,153.83,20.0]
[1724756257794,3.2495,153.85,153.83,20.0]
[1724756259399,0.04255867,153.86,153.83,20.0]
[1724756259703,0.04255867,153.86,153.85,20.0]
[1724756260497,0.04255867,153.86,153.85,23.17219071]
[1724756260694,5.26824132,153.86,153.85,23.17219071]
[1724756260892,0.04255867,153.86,153.85,26.42159071]
[1724756261097,3.2488,153.88,153.85,26.42159071]
[1724756261098,5.22584718,153.87,153.85,26.42159071]
[1724756261299,5.22584718,153.87,153.86,20.0]
[1724756261700,5.22584718,153.88,153.86,20.0]
[1724756262016,0.04900519,153.89,153.86,20.0]
[1724756262199,5.22525672,153.88,153.86,20.0]
[1724756262794,5.22526251,153.87,153.86,20.0]
[1724756262997,5.22526251,153.88,153.86,20.0]
[1724756263313,5.22526251,153.87,153.86,23.249]
[1724756263501,5.22526251,153.88,153.86,23.249]
[1724756263693,5.22526251,153.87,153.86,23.249]
[1724756263899,5.22526251,153.88,153.86,23.249]
[1724756264099,5.22526251,153.87,153.86,23.249]
[1724756264302,5.22526251,153.87,153.86,20.0]
[1724756264801,5.22526251,153.88,153.86,23.2492]
[1724756264999,5.22526251,153.87,153.86,23.2492]
[1724756265434,3.29770519,153.89,153.86,23.2492]
[1724756265795,5.22492291,153.87,153.86,23.2492]
[1724756266002,3.29770519,153.89,153.86,7.99]
[1724756266504,5.22529153,153.88,153.86,7.99]
[1724756266697,8.47409153,153.88,153.86,7.99]
[1724756267000,0.04900519,153.89,153.86,7.99]
[1724756267001,5.22409887,153.87,153.86,7.99]
[1724756267200,5.22409887,153.88,153.86,7.99]
[1724756267406,8.47329887,153.87,153.86,7.99]
[1724756268000,8.47329887,153.87,153.85,0.0432727]
[1724756268206,5.22409887,153.86,153.85,0.0432727]
[1724756268594,5.22383462,153.86,153.85,3.23113028]
[1724756269005,3.2492,153.87,153.85,3.23113028]
[1724756269201,5.22445153,153.86,153.85,3.23113028]
[1724756269913,5.22445153,153.86,153.85,0.0432727]
[1724756270307,5.22445153,153.86,153.85,3.36694972]
[1724756271931,8.47365153,153.86,153.85,0.0432727]
[1724756275137,3.2492,153.86,153.85,0.0432727]
[1724756275310,8.4696653,153.86,153.85,0.0432727]
[1724756275516,3.2492,153.86,153.85,0.0432727]
[1724756275717,8.4696653,153.86,153.85,0.0432727]
[1724756276215,5.2204653,153.86,153.85,3.2926727]
[1724756276416,5.2204653,153.87,153.85,0.0432727]
[1724756276624,5.2204653,153.86,153.85,0.0432727]
[1724756277012,8.4696653,153.86,153.85,0.0432727]
[1724756277917,8.4696653,153.86,153.85,23.21883877]
[1724756277918,5.2204653,153.86,153.85,23.21883877]
[1724756278113,5.2204653,153.86,153.85,20.0032727]
[1724756278508,5.2204653,153.86,153.85,23.20226369]
[1724756279117,5.2204653,153.86,153.85,20.0032727]
[1724756279318,8.4696653,153.86,153.85,0.0432727]
[1724756281014,3.2492,153.86,153.85,0.0432727]
[1724756281325,8.46777164,153.86,153.85,0.0432727]
[1724756282119,5.21857164,153.86,153.85,0.0432727]
[1724756282423,5.21857164,153.86,153.85,23.28599919]
[1724756283534,3.2488,153.88,153.85,26.53539919]
[1724756283712,3.2488,153.88,153.87,19.96]
[1724756283928,8.46708993,153.88,153.87,19.96]
[1724756284136,5.21828993,153.88,153.87,19.96]
[1724756284820,8.46698993,153.88,153.87,19.96]
[1724756285422,5.21828993,153.88,153.87,23.209]
[1724756286925,5.21454346,153.88,153.87,23.209]
[1724756287324,5.21454346,153.88,153.87,19.96]
[1724756288025,5.21454346,153.88,153.87,7.99]
[1724756288622,5.21454346,153.88,153.85,4.9032727]
[1724756288821,5.21454346,153.87,153.85,0.0432727]
[1724756289028,5.21454346,153.86,153.85,0.0432727]
[1724756289325,5.21454346,153.88,153.85,0.0432727]
[1724756289519,5.21454346,153.87,153.85,0.0432727]
[1724756289727,5.21454346,153.86,153.85,0.0432727]
[1724756290045,3.2492,153.86,153.85,3.28885294]
[1724756290322,3.2492,153.86,153.85,0.0432727]
[1724756290518,8.46098651,153.86,153.85,0.0432727]
[1724756290926,13.67271141,153.86,153.85,3.36532301]
[1724756291124,13.67271141,153.86,153.85,11.35532301]
[1724756291328,10.42351141,153.86,153.85,11.35532301]
[1724756291828,5.2117249,153.86,153.85,11.35532301]
[1724756293825,8.4609249,153.86,153.85,0.0432727]
[1724756294723,3.2498,153.84,153.82,7.99]
[1724756295022,5.2117249,153.83,153.82,7.99]
[1724756295222,11.7135629,153.83,153.82,7.99]
[1724756296236,14.9633629,153.83,153.82,7.99]
[1724756296440,3.2498,153.83,153.81,8.0362878]
[1724756296621,8.46065787,153.83,153.82,7.99]
[1724756297029,14.96283221,153.83,153.82,7.99]
[1724756297831,11.71303221,153.83,153.82,7.99]
[1724756300125,6.50217434,153.83,153.82,7.99]
[1724756300326,11.71330059,153.83,153.82,7.99]
[1724756300529,5.21112625,153.83,153.82,7.99]
[1724756300728,11.71311582,153.83,153.82,7.99]
[1724756301130,11.71311582,153.83,153.82,11.24]
[1724756301429,11.71287901,153.83,153.82,11.24]
[1724756301630,11.71287901,153.83,153.82,7.99]
[1724756302227,5.21112625,153.83,153.82,7.99]
[1724756302433,11.71284518,153.83,153.82,7.99]
[1724756303133,14.96264518,153.83,153.82,7.99]
[1724756303627,14.96264518,153.83,153.81,0.0462878]
[1724756303827,5.21112625,153.82,153.81,0.0462878]
[1724756304327,5.21112625,153.82,153.81,8.0362878]
[1724756306639,0.04307899,153.84,153.81,8.0362878]
[1724756306928,0.04307899,153.84,153.83,7.99]
[1724756307136,5.25454231,153.84,153.83,7.99]
[1724756307338,0.04307899,153.84,153.83,7.99]
[1724756307626,6.54474849,153.84,153.83,7.99]
[1724756307832,7.4553,153.92,153.83,7.99]
[1724756308033,3.2491,153.87,153.86,7.99]
[1724756308232,9.74997724,153.87,153.86,7.99]
[1724756308431,3.2491,153.87,153.86,7.99]
[1724756310522,8.46249553,153.87,153.86,7.99]
[1724756314639,8.46249553,153.87,153.85,0.04150331]
[1724756314827,5.21339553,153.86,153.85,8.03150331]
[1724756315225,5.21339553,153.86,153.85,14.57533394]
[1724756315735,3.2491,153.87,153.85,11.32593394]
[1724756316030,5.2132363,153.86,153.85,8.03150331]
[1724756316940,5.2132363,153.86,153.85,11.26169446]
[1724756317437,5.2132363,153.86,153.85,8.03150331]
[1724756317833,0.0493642,153.88,153.85,11.29711963]
[1724756318041,5.21423813,153.87,153.85,3.30711963]
[1724756318339,0.0493642,153.88,153.86,7.99]
[1724756318538,5.21058884,153.87,153.86,7.99]
[1724756318936,0.0493642,153.88,153.86,7.99]
[1724756319242,5.21065268,153.87,153.86,7.99]
[1724756319437,5.21046821,153.87,153.86,7.99]
[1724756322243,5.21113968,153.87,153.86,7.99]
[1724756324839,8.46013968,153.87,153.86,7.99]
[1724756325041,14.68817516,153.87,153.86,7.99]
[1724756325242,8.46013968,153.87,153.86,7.99]
[1724756325545,14.68824683,153.87,153.86,7.99]
[1724756326337,19.42924683,153.87,153.81,7.99]
[1724756326543,12.74644683,153.86,153.81,7.99]
[1724756326738,3.25,153.83,153.81,7.99]
[1724756326938,5.21113968,153.82,153.79,4.84]
[1724756327138,5.21113968,153.81,153.79,12.83]
[1724756327339,5.21113968,153.8,153.79,12.83]
[1724756327837,5.21113968,153.8,153.79,16.0806]
[1724756330054,5.21113968,153.8,153.79,12.83]
[1724756331653,5.21113968,153.8,153.79,16.0806]
[1724756331958,0.04528478,153.82,153.79,16.0806]
[1724756332251,0.04528478,153.82,153.81,7.99]
[1724756332451,5.25235016,153.82,153.81,7.99]
[1724756332952,5.25235016,153.82,153.8,7.99]
[1724756333251,5.20706538,153.81,153.8,7.99]
[1724756333448,8.45726538,153.81,153.8,7.99]
[1724756334245,5.20706538,153.81,153.8,7.99]
[1724756334447,5.20706538,153.81,153.78,0.04261094]
[1724756334653,8.45766538,153.8,153.78,0.04261094]
[1724756334843,5.20706538,153.79,153.78,0.04261094]
[1724756335048,3.2506,153.8,153.78,0.04261094]
[1724756335452,5.20304342,153.79,153.78,0.04261094]
[1724756337652,0.04528478,153.82,153.79,3.2506]
[1724756337952,0.04528478,153.82,153.81,7.99]
[1724756339353,3.29548478,153.82,153.81,7.99]
[1724756340447,3.29548478,153.82,153.8,7.99]
[1724756340649,3.2502,153.81,153.8,7.99]
[1724756340853,3.2502,153.81,153.78,3.29331094]
[1724756341046,0.04528478,153.82,153.78,0.04261094]
[1724756341255,0.04528478,153.82,153.79,7.99]
[1724756342844,3.2504,153.81,153.79,7.99]
[1724756345657,3.2504,153.81,153.8,7.99]
[1724756345844,3.29538478,153.82,153.8,7.99]
[1724756346046,0.04528478,153.82,153.8,7.99]
[1724756346249,0.04528478,153.82,153.8,11.2404]
[1724756347057,3.29538478,153.82,153.8,7.99]
[1724756347256,0.04528478,153.82,153.78,0.04261094]
[1724756347454,3.2506,153.79,153.78,0.04261094]
[1724756348051,9.4585346,153.79,153.78,0.04261094]
[1724756348359,3.2514,153.76,153.73,3.2518]
[1724756348552,3.2514,153.76,153.73,11.2418]
[1724756349158,3.29463838,153.76,153.73,11.28972161]
[1724756349557,5.19124955,153.75,153.73,11.28972161]
[1724756349754,3.29463838,153.76,153.74,7.99]
[1724756349957,5.19137547,153.75,153.74,7.99]
[1724756350479,3.29463838,153.76,153.74,7.99]
[1724756350765,5.1914044,153.75,153.74,7.99]
[1724756352864,5.1914044,153.75,153.73,8.03792161]
[1724756353058,5.1914044,153.74,153.73,0.04792161]
[1724756353283,3.2517,153.74,153.73,0.04792161]
[1724756353455,8.44210978,153.74,153.73,0.04792161]
[1724756354461,8.44210978,153.74,153.73,3.26936628]
[1724756356664,8.44137638,153.74,153.73,3.26936628]
[1724756357068,3.2517,153.74,153.73,3.26936628]
[1724756357268,8.44091593,153.74,153.73,3.26936628]
[1724756357470,3.252,153.73,153.7,3.2525]
[1724756357662,5.18921593,153.72,153.7,3.2525]
[1724756359865,3.29767873,153.73,153.7,3.2525]
[1724756360066,5.18626774,153.72,153.7,3.2525]
[1724756360671,3.29767873,153.73,153.7,3.2525]
[1724756361669,0.04567873,153.73,153.72,3.2521]
[1724756361872,0.04567873,153.73,153.71,20.0]
[1724756363172,3.29757873,153.73,153.71,20.0]
[1724756365875,3.29757873,153.73,153.71,23.2523]
[1724756367373,3.29757873,153.73,153.71,20.0]
[1724756369574,3.29757873,153.73,153.71,23.2523]
[1724756369979,3.29757873,153.73,153.71,3.2523]
[1724756370172,3.29757873,153.73,153.7,3.2525]
[1724756370975,3.2522,153.72,153.69,26.57448243]
[1724756374581,3.2522,153.72,153.7,3.2525]
[1724756374980,3.2522,153.72,153.69,26.57448243]
[1724756375683,0.04567873,153.73,153.69,26.57448243]
[1724756375684,3.29767873,153.73,153.7,3.2525]
[1724756375984,0.04567873,153.73,153.71,8.0]
[1724756376484,3.29767873,153.73,153.71,8.0]
[1724756376882,0.04567873,153.73,153.7,8.0]
[1724756377083,0.04567873,153.73,153.69,14.57458243]
[1724756377084,3.2523,153.72,153.69,14.57458243]
[1724756378085,3.2523,153.72,153.69,6.57458243]
[1724756378286,3.2523,153.72,153.69,14.57458243]
[1724756380285,3.29767873,153.73,153.71,8.0]
[1724756382188,3.2521,153.72,153.71,8.0]
[1724756383383,3.2521,153.72,153.7,3.2525]
[1724756384587,3.2521,153.72,153.69,14.57448243]
[1724756385780,3.2521,153.72,153.7,3.2525]
[1724756385985,3.29767873,153.73,153.7,3.2525]
[1724756386591,3.2521,153.72,153.7,3.2525]
[1724756390502,3.2521,153.72,153.69,6.57458243]
[1724756390689,0.04567873,153.73,153.69,3.32188243]
[1724756391594,3.2524,153.71,153.69,3.32188243]
[1724756392599,3.2524,153.71,153.69,11.32188243]
[1724756392902,3.2522,153.72,153.69,14.57468243]
[1724756394390,0.04567873,153.73,153.7,8.0]
[1724756394595,0.04567873,153.73,153.72,8.0]
[1724756395203,3.29757873,153.73,153.72,8.0]
[1724756395394,8.48235687,153.73,153.72,8.0]
[1724756395594,5.23045687,153.73,153.72,8.0]
[1724756396002,0.04567873,153.73,153.7,3.2525]
[1724756396497,8.0,153.72,153.69,0.04743823]
[1724756396696,14.4367026,153.71,153.57,6.5103]
[1724756396898,3.2533,153.67,153.64,8.0]
[1724756397095,3.2533,153.67,153.64,11.19084491]
[1724756397598,0.04551017,153.67,153.65,8.0]
[1724756398103,3.2536,153.65,153.64,3.19084491]
[1724756398400,3.2536,153.65,153.6,8.3736]
[1724756398401,6.55433329,153.67,153.61,4.8]
[1724756398596,0.04551017,153.67,153.62,8.0]
[1724756399101,3.2535,153.66,153.63,3.2539]
[1724756399505,3.2535,153.66,153.64,8.0]
[1724756400499,0.04551017,153.67,153.65,8.0]
[1724756400800,0.04551017,153.67,153.66,8.0]
[1724756401200,0.04551017,153.67,153.61,7.99730352]
[1724756401602,0.04551017,153.67,153.6,3.2545]
[1724756401603,8.04551017,153.67,153.6,3.2545]
[1724756401803,8.0,153.66,153.56,4.8]
[1724756402003,0.04932571,153.63,153.55,2.6034]
[1724756402213,8.04932571,153.63,153.56,8.0]
[1724756402511,8.04932571,153.63,153.58,8.0]
[1724756402512,0.04932571,153.63,153.58,8.0]
[1724756402699,0.04784948,153.62,153.58,8.0]
[1724756402915,3.2546,153.61,153.58,8.0]
[1724756403395,0.04784948,153.62,153.58,8.0]
[1724756403602,0.04784948,153.62,153.57,8.0]
[1724756404004,3.30214948,153.62,153.57,8.0]
[1724756404311,0.04784948,153.62,153.56,32.0]
[1724756404501,0.04784948,153.62,153.61,8.0]
[1724756404705,0.04784948,153.62,153.61,11.25066754]
[1724756405009,0.04784948,153.62,153.61,14.50516754]
[1724756405808,0.04784948,153.62,153.61,6.50516754]
[1724756406006,0.04784948,153.62,153.61,14.50516754]
[1724756407200,0.04784948,153.62,153.61,3.25066754]
[1724756407395,0.04784948,153.62,153.59,8.0]
[1724756407801,0.04784948,153.62,153.58,8.0]
[1724756408605,3.2545,153.61,153.58,8.0]
[1724756409113,3.30214948,153.62,153.6,8.0]
[1724756409299,0.04784948,153.62,153.6,8.0]
[1724756409803,0.04784948,153.62,153.61,8.0]
[1724756410005,0.04784948,153.62,153.61,23.19106016]
[1724756410201,0.04784948,153.62,153.61,26.44556016]
[1724756411508,0.04784948,153.62,153.61,23.19106016]
[1724756412606,0.04784948,153.62,153.61,26.44556016]
[1724756413806,3.2532,153.67,153.64,3.2538]
[1724756414012,3.2532,153.67,153.63,19.99]
[1724756414212,3.2532,153.67,153.63,23.26452441]
[1724756414415,3.2531,153.68,153.63,23.26452441]
[1724756414616,6.50875158,153.67,153.63,23.26452441]
[1724756414908,6.55109259,153.67,153.64,0.04122241]
[1724756415115,3.29554101,153.67,153.64,0.04122241]
[1724756415413,0.04234101,153.67,153.64,0.04122241]
[1724756415910,0.04234101,153.67,153.57,21.3423]
[1724756416126,3.2543,153.62,153.58,3.2549]
[1724756416408,19.99,153.65,153.58,3.2549]
[1724756416613,19.99,153.65,153.57,23.2452]
[1724756416614,3.2545,153.61,153.57,23.2452]
[1724756416814,19.99,153.65,153.57,3.2552]
[1724756417015,0.04816549,153.61,153.57,3.2552]
[1724756417615,0.04816549,153.61,153.55,19.99]
[1724756418107,3.30276549,153.61,153.57,3.2552]
[1724756419414,3.2547,153.6,153.57,3.2552]
[1724756419618,3.2547,153.6,153.56,3.2555]
[1724756421314,3.255,153.59,153.56,3.2555]
[1724756422547,3.2547,153.6,153.56,3.2555]
[1724756422772,20.03816549,153.61,153.54,19.99]
[1724756422914,20.03816549,153.61,153.53,3.24224295]
[1724756422915,19.99,153.6,153.53,3.24224295]
[1724756423117,19.99,153.6,153.52,3.2562]
[1724756423420,3.2559,153.55,153.5,27.5356]
[1724756423616,3.2559,153.55,153.5,26.1604]
[1724756423617,0.04631607,153.54,153.5,26.1604]
[1724756424014,0.04631607,153.54,153.51,3.2565]
[1724756424214,0.04631607,153.54,153.5,8.09993504]
[1724756424415,0.04631607,153.54,153.5,11.35673504]
[1724756424614,0.04631607,153.54,153.44,19.99]
[1724756424615,0.04631607,153.54,153.36,19.99]